fUSD/lending_fUSD_20250617
["ID","MTS","AMOUNT","RATE_DAILY","PERIOD"]
[366300947,1750179079056,-1784.36,0.00016602,2]
[366300948,1750179079066,-490.0,0.00016602,2]
[366300949,1750179079078,-490.0,0.00016602,2]
[366300950,1750179079088,-490.0,0.00016602,2]
[366300951,1750179079099,-490.0,0.00016602,2]
[366300952,1750179079110,-490.0,0.00016602,2]
[366300953,1750179079121,-490.0,0.00016602,2]
[366300954,1750179079132,-490.0,0.00016602,2]
[366300955,1750179079143,-2665.98,0.00016602,2]
[366300956,1750179079154,-490.0,0.00016602,2]
[366300957,1750179079163,-490.0,0.00016602,2]
[366300958,1750179079174,-2519.09,0.00016602,2]
[366300959,1750179079184,-1655.08,0.00016602,2]
[366300960,1750179079195,-490.0,0.00016602,2]
[366300961,1750179079208,-434.37874147,0.00016602,2]
[366300962,1750179079219,-4264.82,0.00016602,2]
[366300963,1750179079229,-695.16,0.00016602,2]
[366300964,1750179079240,-490.0,0.00016602,2]
[366300965,1750179079251,-490.0,0.00016602,2]
[366300966,1750179079263,-1590.78,0.00016602,2]
[366300967,1750179079274,-1027.36,0.00016602,2]
[366300968,1750179079284,-490.0,0.00016602,2]
[366300969,1750179079295,-490.0,0.00016602,2]
[366300970,1750179079306,-491.75878368,0.00016602,2]
[366300971,1750179079317,-490.0,0.00016602,2]
[366300972,1750179079328,-1727.59,0.00016602,2]
[366300973,1750179079338,-490.0,0.00016602,2]
[366300974,1750179079350,-490.0,0.00016602,2]
[366300975,1750179079361,-490.0,0.00016602,2]
[366300976,1750179079371,-490.0,0.00016602,2]
[366300977,1750179079382,-490.0,0.00016602,2]
[366300978,1750179079393,-490.0,0.00016602,2]
[366300979,1750179079403,-705.75,0.00016602,2]
[366300980,1750179079413,-1263.19,0.00016602,2]
[366300981,1750179079424,-490.0,0.00016602,2]
[366300982,1750179079434,-969.67,0.00016602,2]
[366300983,1750179079445,-490.0,0.00016602,2]
[366300984,1750179079455,-503.74932388,0.00016602,2]
[366300985,1750179079467,-551.24113431,0.00016602,2]
[366300986,1750179079478,-490.0,0.00016602,2]
[366300987,1750179079489,-490.0,0.00016602,2]
[366300988,1750179079503,-1222.19,0.00016602,2]
[366300989,1750179079513,-1068.65,0.00016602,2]
[366300990,1750179079523,-490.0,0.00016602,2]
[366300991,1750179079534,-1082.06,0.00016602,2]
[366300992,1750179079544,-622.03,0.00016602,2]
[366300993,1750179079554,-539.12,0.00016602,2]
[366300994,1750179079564,-490.0,0.00016602,2]
[366300995,1750179079575,-1237.16,0.00016602,2]
[366300996,1750179079586,-490.0,0.00016602,2]
[366300997,1750179079597,-860.53,0.00016602,2]
[366300998,1750179079607,-1268.17,0.00016602,2]
[366300999,1750179079617,-490.0,0.00016602,2]
[366301000,1750179079627,-487.24254489,0.00016602,2]
[366301001,1750179079637,-490.0,0.00016602,2]
[366301002,1750179079647,-490.0,0.00016602,2]
[366301003,1750179079657,-490.0,0.00016602,2]
[366301004,1750179079668,-188.43,0.00016602,2]
[366301005,1750179079679,-4142.56,0.00016602,2]
[366301006,1750179079690,-464.55,0.00016602,2]
[366301007,1750179079702,-500.0,0.00016602,2]
[366301008,1750179079718,-500.0,0.00016602,2]
[366301009,1750179079730,-150.0,0.00016602,2]
[366301010,1750179079741,-217.85626886,0.00016602,2]
[366301011,1750179079752,-195.74451207,0.00016602,2]
[366301012,1750179079762,-150.38609433,0.00016602,2]
[366301013,1750179079772,-150.0,0.00016602,2]
[366301014,1750179079783,-167.79596615,0.00016602,2]
[366301015,1750179079794,-500.0,0.00016602,2]
[366301016,1750179079804,-500.0,0.00016602,2]
[366301017,1750179079814,-150.0,0.00016602,2]
[366301018,1750179079824,-150.0,0.00016602,2]
[366301019,1750179079834,-500.0,0.00016602,2]
[366301020,1750179079844,-200.0,0.00016602,2]
[366301021,1750179079854,-500.0,0.00016602,2]
[366301022,1750179079865,-388.877299,0.00016614,2]
[366301023,1750179079875,-388.877299,0.00016614,2]
[366301024,1750179079886,-261.257853,0.00016614,2]
[366301025,1750179079897,-261.257853,0.00016614,2]
[366301026,1750179079907,-162.553686,0.00016614,2]
[366301027,1750179079917,-162.553686,0.00016614,2]
[366301028,1750179079927,-168.0,0.00016616,2]
[366301029,1750179079937,-266.06346024,0.0001663,2]
[366301030,1750179079946,-500.0,0.0001663,2]
[366301031,1750179079956,-150.0,0.0001663,2]
[366301032,1750179079969,-150.0,0.0001663,2]
[366301033,1750179079979,-500.0,0.0001663,2]
[366301034,1750179079989,-500.0,0.0001663,2]
[366301035,1750179079999,-200.0,0.0001663,2]
[366301036,1750179080009,-150.0,0.0001663,2]
[366301037,1750179080019,-500.0,0.0001663,2]
[366301038,1750179080029,-500.0,0.0001663,2]
[366301039,1750179080040,-168.0,0.00016633,2]
[366301040,1750179080058,-400.0,0.00016657,2]
[366301041,1750179080069,-281.30481384,0.00016657,2]
[366301042,1750179080079,-150.0,0.00016657,2]
[366301043,1750179080089,-500.0,0.00016657,2]
[366301044,1750179080098,-500.0,0.00016657,2]
[366301045,1750179080108,-151.32938418,0.00016657,2]
[366301046,1750179080118,-500.0,0.00016657,2]
[366301047,1750179080128,-500.0,0.00016657,2]
[366301048,1750179080138,-993.0,0.00016663,2]
[366301049,1750179080146,-168.0,0.00016664,2]
[366301050,1750179080156,-335.40501584,0.00016667,2]
[366301051,1750179080166,-16600.62120792,0.00016667,2]
[366301052,1750179080176,-150.0,0.00016685,2]
[366301053,1750179080185,-581.80042363,0.00016685,2]
[366301054,1750179080195,-500.0,0.00016685,2]
[366301055,1750179080206,-500.0,0.00016685,2]
[366301056,1750179080218,-500.0,0.00016685,2]
[366301057,1750179080228,-378.33254744,0.00016689,2]
[366301058,1750179080238,-155.21774203,0.00016694,2]
[366301059,1750179080248,-972.48103,0.00016698,2]
[366301060,1750179080258,-972.48103,0.00016698,2]
[366301061,1750179080268,-151.0,0.00016698,2]
[366301062,1750179080278,-151.0,0.00016698,2]
[366301063,1750179080287,-192.784752,0.00016698,2]
[366301064,1750179080298,-192.784752,0.00016698,2]
[366301065,1750179080307,-185.086926,0.00016698,2]
[366301066,1750179080317,-185.086926,0.00016698,2]
[366301067,1750179080327,-8077.056091,0.00016698,2]
[366301068,1750179080337,-8077.056091,0.00016698,2]
[366301069,1750179080347,-151.0,0.00016698,2]
[366301070,1750179080357,-879.769386,0.00016698,2]
[366301071,1750179080367,-879.769386,0.00016698,2]
[366301072,1750179080376,-353.700401,0.00016698,2]
[366301073,1750179080386,-151.0,0.00016698,2]
[366301074,1750179080396,-353.700401,0.00016698,2]
[366301075,1750179080503,-151.0,0.00016698,2]
[366301076,1750179080514,-151.0,0.00016698,2]
[366301077,1750179080524,-151.0,0.00016698,2]
[366301078,1750179080534,-460.689841,0.00016698,2]
[366301079,1750179080543,-460.689841,0.00016698,2]
[366301080,1750179080554,-151.0,0.00016698,2]
[366301081,1750179080563,-232.539758,0.00016698,2]
[366301082,1750179080573,-232.539758,0.00016698,2]
[366301083,1750179080583,-1354.860897,0.00016698,2]
[366301084,1750179080593,-1354.860897,0.00016698,2]
[366301085,1750179080603,-166.563169,0.00016698,2]
[366301086,1750179080612,-151.0,0.00016698,2]
[366301087,1750179080621,-797.62,0.00016698,2]
[366301088,1750179080630,-791.32,0.00016698,2]
[366301089,1750179080639,-1575.07,0.00016698,2]
[366301090,1750179080649,-216.96,0.00016698,2]
[366301091,1750179080659,-500.0,0.00016699,2]
[366301092,1750179080668,-151.0,0.000167,2]
[366301093,1750179080678,-20713.96,0.000167,2]
[366301094,1750179080688,-151.0,0.000167,2]
[366301095,1750179080698,-151.0,0.000167,2]
[366301096,1750179080707,-1532.068285,0.000167,2]
[366301097,1750179080718,-1532.068285,0.000167,2]
[366301098,1750179080728,-151.0,0.000167,2]
[366301099,1750179080738,-151.0,0.000167,2]
[366301100,1750179080747,-722.619809,0.000167,2]
[366301101,1750179080757,-722.619809,0.000167,2]
[366301102,1750179080767,-151.0,0.000167,2]
[366301103,1750179080777,-151.0,0.000167,2]
[366301104,1750179080787,-151.0,0.000167,2]
[366301105,1750179080797,-151.0,0.000167,2]
[366301106,1750179080806,-151.0,0.000167,2]
[366301107,1750179080816,-2291.568294,0.000167,2]
[366301108,1750179080826,-2291.568294,0.000167,2]
[366301109,1750179080835,-151.0,0.000167,2]
[366301110,1750179080845,-151.0,0.000167,2]
[366301111,1750179080855,-151.0,0.000167,2]
[366301112,1750179080865,-1008.0,0.000167,2]
[366301113,1750179080875,-300.0,0.000167,6]
[366301114,1750179080886,-151.0,0.000167,2]
[366301115,1750179080895,-205.1176563,0.00016712,2]
[366301116,1750179080905,-500.0,0.00016712,2]
[366301117,1750179080915,-500.0,0.00016712,2]
[366301118,1750179080925,-500.0,0.00016712,2]
[366301119,1750179080935,-187.08,0.00016712,2]
[366301120,1750179080943,-500.0,0.00016727,2]
[366301121,1750179080953,-871.27933146,0.00016728,2]
[366301122,1750179080965,-168.0,0.00016737,2]
[366301123,1750179080975,-500.0,0.00016739,2]
[366301124,1750179080985,-500.0,0.00016739,2]
[366301125,1750179080995,-500.0,0.00016739,2]
[366301126,1750179081004,-16600.62120784,0.0001674,2]
[366301127,1750179081014,-199.88539056,0.00016748,2]
[366301128,1750179081023,-168.0,0.00016756,2]
[366301129,1750179081033,-4469.21,0.00016765,2]
[366301130,1750179081042,-151.0,0.00016766,2]
[366301131,1750179081051,-223.633579,0.00016766,2]
[366301132,1750179081061,-223.633579,0.00016766,2]
[366301133,1750179081071,-151.0,0.00016766,2]
[366301134,1750179081081,-500.0,0.00016766,2]
[366301135,1750179081091,-500.0,0.00016766,2]
[366301136,1750179081101,-500.0,0.00016766,2]
[366301137,1750179081111,-500.0,0.00016766,2]
[366301138,1750179081122,-151.0,0.00016766,2]
[366301139,1750179081133,-151.0,0.00016766,2]
[366301140,1750179081143,-151.0,0.00016766,2]
[366301141,1750179081153,-4469.21,0.00016766,2]
[366301142,1750179081162,-4469.21,0.00016766,2]
[366301143,1750179081173,-4469.21,0.00016766,2]
[366301144,1750179081183,-4469.21,0.00016766,2]
[366301145,1750179081193,-4469.21,0.00016766,2]
[366301146,1750179081203,-4469.36,0.00016766,2]
[366301147,1750179081215,-151.0,0.00016766,2]
[366301148,1750179081225,-300.0,0.00016766,2]
[366301149,1750179081235,-300.0,0.00016766,2]
[366301150,1750179081244,-300.0,0.00016766,2]
[366301151,1750179081252,-666.0,0.00016766,2]
[366301152,1750179081262,-300.0,0.00016766,2]
[366301153,1750179081271,-597.7964257,0.00016767,2]
[366301154,1750179081281,-500.0,0.00016767,2]
[366301155,1750179081291,-500.0,0.00016767,2]
[366301156,1750179081301,-151.0,0.00016767,2]
[366301157,1750179081310,-151.0,0.00016767,2]
[366301158,1750179081320,-151.0,0.00016767,2]
[366301159,1750179081329,-151.0,0.00016767,2]
[366301160,1750179081339,-151.0,0.00016767,2]
[366301161,1750179081348,-151.0,0.00016767,2]
[366301162,1750179081358,-151.0,0.00016767,2]
[366301163,1750179081373,-151.0,0.00016767,2]
[366301164,1750179081383,-151.0,0.00016767,2]
[366301165,1750179081393,-151.0,0.00016767,2]
[366301166,1750179081404,-151.0,0.00016767,2]
[366301167,1750179081413,-211.71623,0.00016767,2]
[366301168,1750179081423,-151.0,0.00016767,2]
[366301169,1750179081433,-151.0,0.00016767,2]
[366301170,1750179081442,-151.0,0.00016767,2]
[366301171,1750179081452,-151.0,0.00016767,2]
[366301172,1750179081464,-151.0,0.00016767,2]
[366301173,1750179081474,-151.0,0.00016767,2]
[366301174,1750179081483,-151.0,0.00016767,2]
[366301175,1750179081496,-151.0,0.00016767,2]
[366301176,1750179081506,-151.0,0.00016767,2]
[366301177,1750179081516,-218.007186,0.00016767,2]
[366301178,1750179081526,-165.700937,0.00016767,2]
[366301179,1750179081535,-165.700937,0.00016767,2]
[366301180,1750179081547,-165.700937,0.00016767,2]
[366301181,1750179081556,-165.700937,0.00016767,2]
[366301182,1750179081566,-165.700937,0.00016767,2]
[366301183,1750179081577,-165.700937,0.00016767,2]
[366301184,1750179081587,-291.48554,0.00016767,2]
[366301185,1750179081597,-347.821451,0.00016767,2]
[366301186,1750179081607,-347.821451,0.00016767,2]
[366301187,1750179081617,-347.821451,0.00016767,2]
[366301188,1750179081627,-347.821451,0.00016767,2]
[366301189,1750179081637,-347.821451,0.00016767,2]
[366301190,1750179081647,-347.821451,0.00016767,2]
[366301191,1750179081657,-151.0,0.00016767,2]
[366301192,1750179081667,-151.0,0.00016767,2]
[366301193,1750179081677,-169.269654,0.00016767,2]
[366301194,1750179081687,-151.0,0.00016767,2]
[366301195,1750179081697,-151.0,0.00016767,2]
[366301196,1750179081708,-151.0,0.00016767,2]
[366301197,1750179081719,-151.0,0.00016767,2]
[366301198,1750179081730,-151.0,0.00016767,2]
[366301199,1750179081740,-217.515172,0.00016767,2]
[366301200,1750179081750,-648.949849,0.00016767,2]
[366301201,1750179081761,-648.949849,0.00016767,2]
[366301202,1750179081771,-648.949849,0.00016767,2]
[366301203,1750179081782,-648.949849,0.00016767,2]
[366301204,1750179081793,-648.949849,0.00016767,2]
[366301205,1750179081803,-648.949849,0.00016767,2]
[366301206,1750179081813,-172.94405,0.00016767,2]
[366301207,1750179081826,-201.605865,0.00016767,2]
[366301208,1750179081836,-201.605865,0.00016767,2]
[366301209,1750179081846,-201.605865,0.00016767,2]
[366301210,1750179081856,-201.605865,0.00016767,2]
[366301211,1750179081866,-201.605865,0.00016767,2]
[366301212,1750179081877,-201.605865,0.00016767,2]
[366301213,1750179081888,-187.440199,0.00016767,2]
[366301214,1750179081898,-187.440199,0.00016767,2]
[366301215,1750179081909,-187.440199,0.00016767,2]
[366301216,1750179081919,-187.440199,0.00016767,2]
[366301217,1750179081930,-187.440199,0.00016767,2]
[366301218,1750179081939,-187.440199,0.00016767,2]
[366301219,1750179081949,-2385.084473,0.00016767,2]
[366301220,1750179081960,-151.0,0.00016767,2]
[366301221,1750179081970,-151.0,0.00016767,2]
[366301222,1750179081980,-151.0,0.00016767,2]
[366301223,1750179081991,-280.938405,0.00016767,2]
[366301224,1750179082002,-2643.996566,0.00016767,2]
[366301225,1750179082013,-232.176613,0.00016767,2]
[366301226,1750179082024,-232.176613,0.00016767,2]
[366301227,1750179082033,-232.176613,0.00016767,2]
[366301228,1750179082043,-151.0,0.00016767,2]
[366301229,1750179082054,-232.176613,0.00016767,2]
[366301230,1750179082064,-232.176613,0.00016767,2]
[366301231,1750179082075,-232.176613,0.00016767,2]
[366301232,1750179082085,-151.0,0.00016767,2]
[366301233,1750179082098,-151.0,0.00016767,2]
[366301234,1750179082109,-1532.068285,0.00016767,2]
[366301235,1750179082119,-151.0,0.00016767,2]
[366301236,1750179082129,-153.068112,0.00016767,2]
[366301237,1750179082139,-1532.068285,0.00016767,2]
[366301238,1750179082150,-151.0,0.00016767,2]
[366301239,1750179082160,-151.0,0.00016767,2]
[366301240,1750179082170,-151.0,0.00016767,2]
[366301241,1750179082180,-151.0,0.00016767,2]
[366301242,1750179082190,-151.0,0.00016767,2]
[366301243,1750179082199,-151.0,0.00016767,2]
[366301244,1750179082211,-722.619809,0.00016767,2]
[366301245,1750179082221,-722.619809,0.00016767,2]
[366301246,1750179082231,-151.0,0.00016767,2]
[366301247,1750179082242,-202.261635,0.00016767,2]
[366301248,1750179082252,-151.0,0.00016767,2]
[366301249,1750179082262,-151.0,0.00016767,2]
[366301250,1750179082273,-273.543703,0.00016767,2]
[366301251,1750179082283,-151.0,0.00016767,2]
[366301252,1750179082293,-151.0,0.00016767,2]
[366301253,1750179082303,-151.0,0.00016767,2]
[366301254,1750179082313,-151.0,0.00016767,2]
[366301255,1750179082323,-151.0,0.00016767,2]
[366301256,1750179082333,-151.0,0.00016767,2]
[366301257,1750179082343,-1214.664701,0.00016767,2]
[366301258,1750179082353,-1214.664701,0.00016767,2]
[366301259,1750179082364,-151.0,0.00016767,2]
[366301260,1750179082375,-151.0,0.00016767,2]
[366301261,1750179082385,-151.0,0.00016767,2]
[366301262,1750179082395,-151.0,0.00016767,2]
[366301263,1750179082405,-151.0,0.00016767,2]
[366301264,1750179082415,-151.0,0.00016767,2]
[366301265,1750179082426,-151.0,0.00016767,2]
[366301266,1750179082435,-151.0,0.00016767,2]
[366301267,1750179082446,-226.066407,0.00016767,2]
[366301268,1750179082455,-226.066407,0.00016767,2]
[366301269,1750179082467,-226.066407,0.00016767,2]
[366301270,1750179082477,-226.066407,0.00016767,2]
[366301271,1750179082488,-388.877299,0.00016767,2]
[366301272,1750179082498,-388.877299,0.00016767,2]
[366301273,1750179082511,-388.877299,0.00016767,2]
[366301274,1750179082521,-388.877299,0.00016767,2]
[366301275,1750179082532,-151.0,0.00016767,2]
[366301276,1750179082543,-151.0,0.00016767,2]
[366301277,1750179082554,-151.0,0.00016767,2]
[366301278,1750179082564,-151.0,0.00016767,2]
[366301279,1750179082574,-151.0,0.00016767,2]
[366301280,1750179082585,-151.0,0.00016767,2]
[366301281,1750179082597,-261.257853,0.00016767,2]
[366301282,1750179082607,-261.257853,0.00016767,2]
[366301283,1750179082618,-261.257853,0.00016767,2]
[366301284,1750179082636,-261.257853,0.00016767,2]
[366301285,1750179082649,-199.783054,0.00016767,2]
[366301286,1750179082660,-199.783054,0.00016767,2]
[366301287,1750179082672,-199.783054,0.00016767,2]
[366301288,1750179082683,-199.783054,0.00016767,2]
[366301289,1750179082695,-151.0,0.00016767,2]
[366301290,1750179082707,-151.0,0.00016767,2]
[366301291,1750179082722,-316.022161,0.00016767,2]
[366301292,1750179082733,-316.022161,0.00016767,2]
[366301293,1750179082745,-316.022161,0.00016767,2]
[366301294,1750179082756,-316.022161,0.00016767,2]
[366301295,1750179082767,-162.553686,0.00016767,2]
[366301296,1750179082777,-162.553686,0.00016767,2]
[366301297,1750179082789,-162.553686,0.00016767,2]
[366301298,1750179082801,-162.553686,0.00016767,2]
[366301299,1750179082812,-242.579234,0.00016767,2]
[366301300,1750179082823,-242.579234,0.00016767,2]
[366301301,1750179082834,-242.579234,0.00016767,2]
[366301302,1750179082844,-242.579234,0.00016767,2]
[366301303,1750179082856,-151.0,0.00016767,2]
[366301304,1750179082866,-151.0,0.00016767,2]
[366301305,1750179082877,-151.0,0.00016767,2]
[366301306,1750179082888,-151.0,0.00016767,2]
[366301307,1750179082898,-151.0,0.00016767,2]
[366301308,1750179082909,-151.0,0.00016767,2]
[366301309,1750179082920,-151.0,0.00016767,2]
[366301310,1750179082931,-151.0,0.00016767,2]
[366301311,1750179082941,-151.0,0.00016767,2]
[366301312,1750179082952,-182.769773,0.00016767,2]
[366301313,1750179082964,-182.769773,0.00016767,2]
[366301314,1750179082974,-182.769773,0.00016767,2]
[366301315,1750179082984,-182.769773,0.00016767,2]
[366301316,1750179082995,-151.0,0.00016767,2]
[366301317,1750179083006,-151.0,0.00016767,2]
[366301318,1750179083016,-217.852962,0.00016767,2]
[366301319,1750179083026,-616.313918,0.00016767,2]
[366301320,1750179083037,-616.313918,0.00016767,2]
[366301321,1750179083047,-616.313918,0.00016767,2]
[366301322,1750179083057,-616.313918,0.00016767,2]
[366301323,1750179083068,-616.313918,0.00016767,2]
[366301324,1750179083078,-616.313918,0.00016767,2]
[366301325,1750179083089,-358.758264,0.00016767,2]
[366301326,1750179083100,-358.758264,0.00016767,2]
[366301327,1750179083110,-358.758264,0.00016767,2]
[366301328,1750179083121,-358.758264,0.00016767,2]
[366301329,1750179083131,-358.758264,0.00016767,2]
[366301330,1750179083141,-358.758264,0.00016767,2]
[366301331,1750179083152,-181.849325,0.00016767,2]
[366301332,1750179083162,-181.849325,0.00016767,2]
[366301333,1750179083173,-181.849325,0.00016767,2]
[366301334,1750179083184,-181.849325,0.00016767,2]
[366301335,1750179083194,-181.849325,0.00016767,2]
[366301336,1750179083204,-181.849325,0.00016767,2]
[366301337,1750179083216,-151.0,0.00016767,2]
[366301338,1750179083226,-152.930908,0.00016767,2]
[366301339,1750179083236,-151.0,0.00016767,2]
[366301340,1750179083247,-289.499253,0.00016767,2]
[366301341,1750179083257,-151.0,0.00016767,2]
[366301342,1750179083266,-151.0,0.00016767,2]
[366301343,1750179083278,-151.0,0.00016767,2]
[366301344,1750179083288,-151.0,0.00016767,2]
[366301345,1750179083298,-151.0,0.00016767,2]
[366301346,1750179083309,-151.0,0.00016767,2]
[366301347,1750179083319,-154.210386,0.00016767,2]
[366301348,1750179083330,-151.0,0.00016767,2]
[366301349,1750179083341,-151.0,0.00016767,2]
[366301350,1750179083351,-151.0,0.00016767,2]
[366301351,1750179083361,-163.853842,0.00016767,2]
[366301352,1750179083372,-151.0,0.00016767,2]
[366301353,1750179083383,-151.0,0.00016767,2]
[366301354,1750179083394,-151.0,0.00016767,2]
[366301355,1750179083404,-151.0,0.00016767,2]
[366301356,1750179083414,-159.308427,0.00016767,2]
[366301357,1750179083425,-490.0,0.00016767,2]
[366301358,1750179083435,-160.490178,0.00016767,2]
[366301359,1750179083445,-160.490178,0.00016767,2]
[366301360,1750179083457,-160.490178,0.00016767,2]
[366301361,1750179083469,-160.490178,0.00016767,2]
[366301362,1750179083479,-160.490178,0.00016767,2]
[366301363,1750179083490,-160.490178,0.00016767,2]
[366301364,1750179083504,-152.936387,0.00016767,2]
[366301365,1750179083515,-151.0,0.00016767,2]
[366301366,1750179083525,-151.0,0.00016767,2]
[366301367,1750179083536,-151.0,0.00016767,2]
[366301368,1750179083546,-151.0,0.00016767,2]
[366301369,1750179083556,-151.0,0.00016767,2]
[366301370,1750179083565,-151.0,0.00016767,2]
[366301371,1750179083575,-218.134053,0.00016767,2]
[366301372,1750179083586,-281.990238,0.00016767,2]
[366301373,1750179083597,-162.811095,0.00016767,2]
[366301374,1750179083607,-162.811095,0.00016767,2]
[366301375,1750179083618,-162.811095,0.00016767,2]
[366301376,1750179083629,-162.811095,0.00016767,2]
[366301377,1750179083638,-162.811095,0.00016767,2]
[366301378,1750179083648,-162.811095,0.00016767,2]
[366301379,1750179083659,-151.0,0.00016767,2]
[366301380,1750179083669,-151.0,0.00016767,2]
[366301381,1750179083680,-151.0,0.00016767,2]
[366301382,1750179083690,-290.26279595,0.00016767,2]
[366301383,1750179083699,-490.0,0.00016767,2]
[366301384,1750179083711,-490.0,0.00016767,2]
[366301385,1750179083722,-490.0,0.00016767,2]
[366301386,1750179083732,-223.633579,0.00016767,2]
[366301387,1750179083742,-223.633579,0.00016767,2]
[366301388,1750179083752,-223.633579,0.00016767,2]
[366301389,1750179083763,-151.0,0.00016767,2]
[366301390,1750179083773,-151.0,0.00016767,2]
[366301391,1750179083783,-151.0,0.00016767,2]
[366301392,1750179083793,-223.633579,0.00016767,2]
[366301393,1750179083805,-223.633579,0.00016767,2]
[366301394,1750179083815,-571.12325883,0.00016767,2]
[366301395,1750179083825,-223.633579,0.00016767,2]
[366301396,1750179083836,-490.0,0.00016767,2]
[366301397,1750179083846,-490.0,0.00016767,2]
[366301398,1750179083857,-490.0,0.00016767,2]
[366301399,1750179083867,-151.0,0.00016767,2]
[366301400,1750179083878,-490.0,0.00016767,2]
[366301401,1750179083888,-490.0,0.00016767,2]
[366301402,1750179083898,-151.0,0.00016767,2]
[366301403,1750179083908,-490.0,0.00016767,2]
[366301404,1750179083918,-490.0,0.00016767,2]
[366301405,1750179083929,-490.0,0.00016767,2]
[366301406,1750179083939,-490.0,0.00016767,2]
[366301407,1750179083949,-360.73343666,0.00016767,2]
[366301408,1750179083959,-490.0,0.00016767,2]
[366301409,1750179083971,-490.0,0.00016767,2]
[366301410,1750179083981,-490.0,0.00016767,2]
[366301411,1750179083991,-490.0,0.00016767,2]
[366301412,1750179084001,-490.0,0.00016767,2]
[366301413,1750179084011,-706.24,0.00016767,2]
[366301414,1750179084021,-490.0,0.00016767,2]
[366301415,1750179084032,-490.0,0.00016767,2]
[366301416,1750179084042,-490.0,0.00016767,2]
[366301417,1750179084052,-490.0,0.00016767,2]
[366301418,1750179084063,-598.73,0.00016767,2]
[366301419,1750179084073,-634.57,0.00016767,2]
[366301420,1750179084084,-490.0,0.00016767,2]
[366301421,1750179084094,-490.0,0.00016767,2]
[366301422,1750179084105,-490.0,0.00016767,2]
[366301423,1750179084115,-490.0,0.00016767,2]
[366301424,1750179084126,-490.0,0.00016767,2]
[366301425,1750179084137,-490.0,0.00016767,2]
[366301426,1750179084149,-490.0,0.00016767,2]
[366301427,1750179084160,-490.0,0.00016767,2]
[366301428,1750179084171,-490.0,0.00016767,2]
[366301429,1750179084182,-490.0,0.00016767,2]
[366301430,1750179084193,-490.0,0.00016767,2]
[366301431,1750179084205,-490.0,0.00016767,2]
[366301432,1750179084220,-490.0,0.00016767,2]
[366301433,1750179084231,-490.0,0.00016767,2]
[366301434,1750179084242,-521.96,0.00016767,2]
[366301435,1750179084253,-490.0,0.00016767,2]
[366301436,1750179084264,-490.0,0.00016767,2]
[366301437,1750179084275,-490.0,0.00016767,2]
[366301438,1750179084287,-490.0,0.00016767,2]
[366301439,1750179084298,-306.16798758,0.00016767,2]
[366301440,1750179084308,-600.07290256,0.00016767,2]
[366301441,1750179084319,-490.0,0.00016767,2]
[366301442,1750179084330,-490.0,0.00016767,2]
[366301443,1750179084341,-490.0,0.00016767,2]
[366301444,1750179084352,-490.0,0.00016767,2]
[366301445,1750179084362,-490.0,0.00016767,2]
[366301446,1750179084374,-490.0,0.00016767,2]